fUST/lending_fUST_20240826
["ID","MTS","AMOUNT","RATE_DAILY","PERIOD"]
[335987825,1724655059686,-556.68,0.00012772,2]
[335987826,1724655059697,-781.49,0.00012772,2]
[335987827,1724655059708,-541.49,0.00012772,2]
[335987828,1724655059719,-2044.126667,0.00012772,2]
[335987829,1724655059729,-2044.126668,0.00012772,2]
[335987830,1724655059739,-268.58684156,0.00012772,2]
[335987831,1724655059769,-595.01,0.00012772,2]
[335987832,1724655059779,-8300.66133026,0.00012772,2]
[335987837,1724655253975,-3000.0,0.00012125,2]
[335987838,1724655253997,-300.0,0.00012202,2]
[335987839,1724655254018,-500.0,0.00012203,2]
[335987840,1724655254040,-706.6,0.00012203,2]
[335987841,1724655254062,-202.96307072,0.00012203,2]
[335987842,1724655254083,-500.0,0.00012203,2]
[335987843,1724655254105,-500.0,0.00012203,2]
[335987844,1724655254127,-500.0,0.00012203,2]
[335987845,1724655254149,-797.44,0.00012203,2]
[335987846,1724655254169,-839.22,0.00012203,2]
[335987847,1724655254193,-625.87,0.00012203,2]
[335987848,1724655254213,-500.0,0.00012203,2]
[335987849,1724655254235,-500.0,0.00012203,2]
[335987850,1724655254256,-590.15,0.00012203,2]
[335987851,1724655254277,-6038.42,0.00012203,2]
[335987852,1724655254298,-606.11,0.00012203,2]
[335987853,1724655254319,-500.0,0.00012203,2]
[335987854,1724655254342,-500.0,0.00012203,2]
[335987855,1724655254363,-500.0,0.00012203,2]
[335987856,1724655254385,-516.85,0.00012203,2]
[335987857,1724655254407,-680.62,0.00012203,2]
[335987858,1724655254429,-500.0,0.00012203,2]
[335987859,1724655254452,-8072.5,0.00012203,2]
[335987860,1724655254473,-500.0,0.00012203,2]
[335987861,1724655254494,-500.0,0.00012203,2]
[335987862,1724655254516,-500.0,0.00012203,2]
[335987863,1724655254537,-500.0,0.00012212,2]
[335987864,1724655254558,-2047.84,0.00012212,2]
[335987865,1724655254579,-500.0,0.00012212,2]
[335987866,1724655254600,-500.0,0.00012212,2]
[335987867,1724655254621,-500.0,0.00012212,2]
[335987868,1724655254642,-3804.8,0.00012212,2]
[335987869,1724655254664,-2666.85,0.00012212,2]
[335987870,1724655254685,-500.0,0.00012212,2]
[335987871,1724655254706,-500.0,0.00012212,2]
[335987872,1724655254726,-627.78,0.00012212,2]
[335987873,1724655254746,-500.48,0.00012212,2]
[335987874,1724655254767,-628.46,0.00012212,2]
[335987875,1724655254789,-560.6,0.00012212,2]
[335987876,1724655254809,-718.94,0.00012212,2]
[335987877,1724655254831,-500.0,0.00012212,2]
[335987878,1724655254851,-500.0,0.00012212,2]
[335987879,1724655254872,-886.9,0.00012212,2]
[335987880,1724655254894,-579.4,0.00012212,2]
[335987881,1724655254914,-500.0,0.00012212,2]
[335987882,1724655254939,-831.62,0.00012212,2]
[335987883,1724655254961,-500.0,0.00012212,2]
[335987884,1724655254982,-500.0,0.00012212,2]
[335987885,1724655255004,-1028.0,0.00012212,2]
[335987886,1724655255025,-500.0,0.00012213,2]
[335987887,1724655255046,-500.0,0.00012213,2]
[335987888,1724655255069,-500.0,0.00012213,2]
[335987889,1724655255091,-1800.96,0.00012213,2]
[335987890,1724655255113,-9189.94,0.00012213,2]
[335987891,1724655255135,-500.0,0.00012213,2]
[335987892,1724655255156,-605.79887429,0.00012213,2]
[335987893,1724655255177,-500.0,0.00012213,2]
[335987894,1724655255203,-2439.28,0.00012213,2]
[335987895,1724655255227,-500.0,0.00012213,2]
[335987896,1724655255251,-500.0,0.00012213,2]
[335987897,1724655255279,-689.99,0.00012213,2]
[335987898,1724655255301,-759.91,0.00012213,2]
[335987899,1724655255323,-949.78,0.00012213,2]
[335987900,1724655255347,-500.0,0.00012213,2]
[335987901,1724655255370,-500.0,0.00012213,2]
[335987902,1724655255391,-500.0,0.00012213,2]
[335987903,1724655255414,-581.94,0.00012213,2]
[335987904,1724655255441,-500.0,0.00012213,2]
[335987905,1724655255465,-500.0,0.00012213,2]
[335987906,1724655255488,-500.0,0.00012213,2]
[335987907,1724655255510,-1145.18,0.00012213,2]
[335987908,1724655255532,-500.0,0.00012213,2]
[335987909,1724655255554,-500.0,0.00012213,2]
[335987910,1724655255817,-503.48,0.00012213,2]
[335987911,1724655255843,-806.99,0.00012213,2]
[335987912,1724655255864,-742.55,0.00012213,2]
[335987913,1724655255886,-944.13,0.00012213,2]
[335987914,1724655255909,-500.0,0.00012213,2]
[335987915,1724655255931,-500.0,0.00012213,2]
[335987916,1724655255955,-3371.54,0.00012213,2]
[335987917,1724655255977,-500.0,0.00012213,2]
[335987918,1724655256000,-22872.31,0.00012213,2]
[335987919,1724655256022,-500.0,0.00012213,2]
[335987920,1724655256045,-1063.41,0.00012213,2]
[335987921,1724655256070,-500.0,0.00012213,2]
[335987922,1724655256091,-591.3,0.00012213,2]
[335987923,1724655256114,-500.0,0.00012213,2]
[335987924,1724655256137,-500.0,0.00012213,2]
[335987925,1724655256161,-563.49,0.00012213,2]
[335987926,1724655256183,-500.0,0.00012213,2]
[335987927,1724655256209,-571.87,0.00012213,2]
[335987928,1724655256233,-1170.67,0.00012213,2]
[335987929,1724655256255,-861.42,0.00012213,2]
[335987930,1724655256277,-500.0,0.00012213,2]
[335987931,1724655256298,-500.0,0.00012213,2]
[335987932,1724655256320,-869.82,0.00012213,2]
[335987933,1724655256355,-500.0,0.00012213,2]
[335987934,1724655256378,-500.0,0.00012213,2]
[335987935,1724655256400,-500.0,0.00012213,2]
[335987936,1724655256423,-695.96,0.00012213,2]
[335987937,1724655256445,-500.0,0.00012213,2]
[335987938,1724655256467,-939.87,0.00012213,2]
[335987939,1724655256489,-550.22,0.00012213,2]
[335987940,1724655256512,-359.77805499,0.00012213,2]
[335987941,1724655299809,-500.0,0.00012203,2]
[335987942,1724655299837,-2063.85,0.00012203,2]
[335987943,1724655299861,-500.0,0.00012203,2]
[335987944,1724655299885,-8807.02,0.00012203,2]
[335987945,1724655299909,-318.22419931,0.00012203,2]
[335987946,1724655299933,-500.0,0.00012203,2]
[335987947,1724655299959,-546.88,0.00012203,2]
[335987948,1724655299984,-2337.65,0.00012203,2]
[335987949,1724655300007,-610.88,0.00012212,2]
[335987950,1724655300032,-500.0,0.00012212,2]
[335987951,1724655300056,-500.0,0.00012212,2]
[335987952,1724655300082,-500.0,0.00012212,2]
[335987953,1724655300106,-140.22194501,0.00012213,2]
[335987954,1724655300129,-500.0,0.00012213,2]
[335987955,1724655300152,-991.9,0.00012213,2]
[335987956,1724655300176,-500.0,0.00012213,2]
[335987957,1724655300206,-967.58,0.00012213,2]
[335987958,1724655300230,-1768.45,0.00012213,2]
[335987959,1724655300253,-500.0,0.00012213,2]
[335987960,1724655300276,-500.0,0.00012213,2]
[335987961,1724655300301,-3888.98,0.00012213,2]
[335987962,1724655300324,-500.0,0.00012213,2]
[335987963,1724655300347,-1725.92,0.00012213,2]
[335987964,1724655300369,-564.81,0.00012213,2]
[335987965,1724655300394,-500.0,0.00012213,2]
[335987966,1724655300417,-500.0,0.00012213,2]
[335987967,1724655300441,-500.0,0.00012213,2]
[335987968,1724655300464,-500.0,0.00012213,2]
[335987969,1724655300489,-414.61317114,0.00012213,2]
[335987970,1724655300512,-728.25,0.00012213,2]
[335987971,1724655300536,-500.0,0.00012214,2]
[335987972,1724655300559,-500.0,0.00012214,2]
[335987973,1724655300583,-500.0,0.00012214,2]
[335987974,1724655300608,-914.93,0.00012214,2]
[335987975,1724655300631,-500.0,0.00012214,2]
[335987976,1724655300654,-500.0,0.00012214,2]
[335987977,1724655300680,-500.0,0.00012214,2]
[335987978,1724655300712,-657.19,0.00012214,2]
[335987979,1724655300735,-862.06,0.00012214,2]
[335987980,1724655300757,-500.0,0.00012214,2]
[335987981,1724655300779,-615.67,0.00012214,2]
[335987982,1724655300801,-500.0,0.00012214,2]
[335987983,1724655300822,-500.0,0.00012214,2]
[335987984,1724655300845,-500.0,0.00012214,2]
[335987985,1724655300869,-391.8876787,0.00012214,2]
[335987986,1724655300891,-4589.89,0.00012214,2]
[335987987,1724655300918,-519.04,0.00012214,2]
[335987988,1724655300951,-563.82,0.00012214,2]
[335987989,1724655300973,-500.0,0.00012214,2]
[335987990,1724655300996,-537.33,0.00012214,2]
[335987991,1724655301302,-500.0,0.00012214,2]
[335987992,1724655301324,-625.22,0.00012214,2]
[335987993,1724655301350,-507.25524023,0.00012214,2]
[335987994,1724655301374,-541.94,0.00012214,2]
[335987995,1724655301396,-500.0,0.00012214,2]
[335987996,1724655302034,500.0,0.00012213,2]
[335987997,1724655303929,500.0,0.00012212,2]
[335987998,1724655456418,2167.31685262,0.00011999,2]
[335988000,1724655508875,1119.0334727,0.00011999,2]
[335988001,1724655556413,500.0,0.00012,2]
[335988010,1724655628363,-688.29665954,0.00027,120]
[335988011,1724655628420,-179.86665028,0.00027,120]
[335988013,1724655668333,698.59734061,0.00027,120]
[335988014,1724655669357,2144.32657805,0.00011999,2]
[335988017,1724655722265,688.29665954,0.00027,120]
[335988018,1724655723538,8850.44161835,0.00011999,2]
[335988019,1724655752455,200.0,0.00018514,120]
[335988023,1724655772385,698.59734061,0.00027,120]
[335988028,1724655794048,150.5,0.000178,120]
[335988030,1724655794582,185.76,0.0001779,120]
[335988035,1724655795914,535.23487752,0.00011999,2]
[335988045,1724655872044,200.0,0.00024012,120]
[335988046,1724655901237,577.508026,0.00011999,2]
[335988047,1724655903257,470.0,0.00027,120]
[335988048,1724655904372,154.8463532,0.00011999,2]
[335988061,1724655964628,196.90814632,0.00011999,2]
[335988062,1724655971283,180.92268934,0.00011999,2]
[335988068,1724656069358,157.17582995,0.00011999,2]
[335988070,1724656086331,157.38607628,0.00011999,2]
[335988072,1724656105814,320.5021642,0.00011999,2]
[335988074,1724656114087,210.39215594,0.00011999,2]
[335988075,1724656122972,154.94876066,0.00011999,2]
[335988077,1724656133145,178.88110628,0.00011999,2]
[335988078,1724656139255,695.14803561,0.00011999,2]
[335988079,1724656140992,569.66960368,0.00011999,2]
[335988080,1724656142386,227.5084395,0.00011999,2]
[335988081,1724656145761,160.49093254,0.00011999,2]
[335988082,1724656149635,154.76012181,0.00011999,2]
[335988084,1724656167468,603.39236087,0.00011999,2]
[335988085,1724656170953,155.25662949,0.00011999,2]
[335988086,1724656179499,154.76012181,0.00011999,2]
[335988095,1724656214967,375.07960744,0.00011999,2]
[335988096,1724656216625,154.92451057,0.00011999,2]
[335988198,1724656238335,-431.25370265,0.00012102,2]
[335988369,1724656240061,-1687.48307184,0.00012102,2]
[335988370,1724656240071,-2118.73677446,0.00012171,2]
[335988371,1724656240081,-300.0,0.00012191,2]
[335988372,1724656240091,-300.0,0.00012191,2]
[335988373,1724656240101,-552.8,0.00012191,2]
[335988374,1724656240110,-500.0,0.00012191,2]
[335988375,1724656240120,-744.95,0.00012191,2]
[335988376,1724656240130,-18577.78860973,0.00012192,2]
[335988377,1724656240143,-253.17940084,0.00012192,2]
[335988405,1724656240402,-71407.91731483,0.00012192,2]
[335988407,1724656240412,-500.0,0.00012192,2]
[335988408,1724656240423,-630.77,0.00012192,2]
[335988410,1724656240432,-674.15,0.00012192,2]
[335988413,1724656240442,-500.0,0.00012192,2]
[335988415,1724656240452,-5786.82,0.00012192,2]
[335988417,1724656240461,-500.0,0.00012192,2]
[335988419,1724656240471,-500.0,0.00012192,2]
[335988421,1724656240480,-500.0,0.00012192,2]
[335988423,1724656240489,-500.0,0.00012192,2]
[335988425,1724656240499,-652.26,0.00012192,2]
[335988427,1724656240508,-500.0,0.00012202,2]
[335988429,1724656240518,-635.63,0.00012202,2]
[335988431,1724656240527,-500.0,0.00012202,2]
[335988433,1724656240537,-500.0,0.00012202,2]
[335988435,1724656240546,-545.71,0.00012202,2]
[335988437,1724656240556,-500.0,0.00012202,2]
[335988439,1724656240567,-677.16,0.00012202,2]
[335988441,1724656240578,-500.0,0.00012202,2]
[335988443,1724656240587,-572.01,0.00012202,2]
[335988445,1724656240598,-500.0,0.00012202,2]
[335988447,1724656240607,-500.0,0.00012202,2]
[335988449,1724656240617,-500.0,0.00012202,2]
[335988451,1724656240626,-500.0,0.00012202,2]
[335988453,1724656240635,-549.5,0.00012202,2]
[335988455,1724656240645,-500.0,0.00012202,2]
[335988456,1724656240655,-500.0,0.00012202,2]
[335988458,1724656240665,-500.0,0.00012202,2]
[335988460,1724656240677,-500.0,0.00012202,2]
[335988462,1724656240687,-500.0,0.00012202,2]
[335988464,1724656240696,-785.05,0.00012202,2]
[335988466,1724656240706,-500.0,0.00012202,2]
[335988468,1724656240716,-804.25,0.00012202,2]
[335988470,1724656240725,-273.53139726,0.00012202,2]
[335988473,1724656240735,-500.0,0.00012202,2]
[335988475,1724656240745,-500.0,0.00012202,2]
[335988477,1724656240754,-500.0,0.00012202,2]
[335988478,1724656240764,-500.0,0.00012202,2]
[335988480,1724656240773,-500.0,0.00012202,2]
[335988482,1724656240783,-500.0,0.00012202,2]
[335988484,1724656240793,-551.81502551,0.00012202,2]
[335988486,1724656240803,-592.5,0.00012202,2]
[335988488,1724656240812,-500.0,0.00012202,2]
[335988491,1724656240822,-609.22,0.00012202,2]
[335988492,1724656240832,-526.97,0.00012202,2]
[335988494,1724656240842,-500.0,0.00012202,2]
[335988497,1724656240852,-500.0,0.00012202,2]
[335988499,1724656240862,-500.0,0.00012202,2]
[335988501,1724656240872,-500.0,0.00012202,2]
[335988503,1724656240881,-500.0,0.00012202,2]
[335988505,1724656240891,-500.0,0.00012202,2]
[335988507,1724656240901,-631.0,0.00012202,2]
[335988508,1724656240910,-500.0,0.00012202,2]
[335988510,1724656240919,-524.89,0.00012202,2]
[335988513,1724656240931,-500.0,0.00012202,2]
[335988515,1724656240942,-500.0,0.00012202,2]
[335988517,1724656240951,-631.74,0.00012202,2]
[335988519,1724656240962,-569.41,0.00012202,2]
[335988521,1724656240971,-526.07081679,0.00012202,2]
[335988523,1724656240981,-722.62,0.00012202,2]
[335988525,1724656240991,-500.0,0.00012202,2]
[335988527,1724656241000,-500.0,0.00012202,2]
[335988529,1724656241010,-500.0,0.00012202,2]
[335988531,1724656241019,-500.0,0.00012202,2]
[335988533,1724656241029,-500.0,0.00012202,2]
[335988535,1724656241038,-500.0,0.00012202,2]
[335988537,1724656241048,-891.45,0.00012202,2]
[335988539,1724656241057,-500.0,0.00012202,2]
[335988541,1724656241068,-500.0,0.00012202,2]
[335988543,1724656241077,-500.0,0.00012202,2]
[335988545,1724656241087,-500.0,0.00012202,2]
[335988547,1724656241097,-500.0,0.00012202,2]
[335988549,1724656241106,-836.05,0.00012202,2]
[335988551,1724656241116,-500.0,0.00012202,2]
[335988553,1724656241127,-500.0,0.00012202,2]
[335988556,1724656241139,-500.0,0.00012202,2]
[335988558,1724656241149,-500.0,0.00012202,2]
[335988560,1724656241159,-500.0,0.00012202,2]
[335988562,1724656241169,-500.0,0.00012202,2]
[335988564,1724656241180,-500.0,0.00012202,2]
[335988566,1724656241190,-500.0,0.00012202,2]
[335988568,1724656241199,-823.45,0.00012202,2]
[335988570,1724656241208,-549.8,0.00012202,2]
[335988572,1724656241218,-500.0,0.00012202,2]
[335988574,1724656241229,-500.0,0.00012202,2]
[335988576,1724656241239,-500.0,0.00012202,2]
[335988578,1724656241248,-500.0,0.00012202,2]
[335988580,1724656241257,-500.0,0.00012202,2]
[335988582,1724656241267,-500.0,0.00012202,2]
[335988584,1724656241277,-500.0,0.00012202,2]
[335988586,1724656241286,-500.0,0.00012202,2]
[335988588,1724656241296,-500.0,0.00012202,2]
[335988590,1724656241306,-500.0,0.00012202,2]
[335988592,1724656241316,-500.0,0.00012202,2]
[335988594,1724656241326,-781.82,0.00012202,2]
[335988596,1724656241335,-500.0,0.00012202,2]
[335988598,1724656241344,-500.0,0.00012202,2]
[335988600,1724656241354,-500.0,0.00012202,2]
[335988602,1724656241364,-500.0,0.00012202,2]
[335988604,1724656241375,-500.0,0.00012202,2]
[335988606,1724656241385,-500.0,0.00012202,2]
[335988608,1724656241395,-500.0,0.00012202,2]
[335988610,1724656241404,-500.0,0.00012202,2]
[335988612,1724656241414,-741.69,0.00012202,2]
[335988615,1724656241427,-948.98,0.00012202,2]
[335988617,1724656241437,-567.65,0.00012202,2]
[335988619,1724656241446,-500.0,0.00012202,2]
[335988621,1724656241456,-500.0,0.00012202,2]
[335988623,1724656241466,-500.0,0.00012202,2]
[335988625,1724656241475,-657.44,0.00012202,2]
[335988627,1724656241484,-500.0,0.00012202,2]
[335988629,1724656241494,-859.47,0.00012202,2]
[335988631,1724656241503,-500.0,0.00012202,2]
[335988633,1724656241512,-500.0,0.00012202,2]
[335988635,1724656241522,-1742.71,0.00012202,2]
[335988637,1724656241533,-500.0,0.00012202,2]
[335988639,1724656241544,-500.0,0.00012202,2]
[335988641,1724656241555,-500.0,0.00012202,2]
[335988643,1724656241570,-500.0,0.00012202,2]
[335988645,1724656241580,-8845.79,0.00012202,2]
[335988647,1724656241589,-500.0,0.00012202,2]
[335988649,1724656241599,-500.0,0.00012202,2]
[335988651,1724656241609,-500.0,0.00012202,2]
[335988653,1724656241619,-943.44,0.00012202,2]
[335988655,1724656241629,-615.29,0.00012202,2]
[335988657,1724656241638,-500.0,0.00012202,2]
[335988659,1724656241648,-731.96,0.00012202,2]
[335988661,1724656241658,-2348.61,0.00012202,2]
[335988664,1724656241668,-3816.19,0.00012202,2]
[335988665,1724656241682,-500.0,0.00012202,2]
[335988667,1724656241694,-500.0,0.00012202,2]
[335988669,1724656241703,-584.02,0.00012202,2]
[335988671,1724656241713,-500.0,0.00012202,2]
[335988673,1724656241723,-588.49,0.00012202,2]
[335988675,1724656241732,-691.87,0.00012202,2]
[335988677,1724656241743,-500.0,0.00012202,2]
[335988679,1724656241752,-500.0,0.00012202,2]
[335988682,1724656241762,-1064.46,0.00012202,2]
[335988684,1724656241771,-500.0,0.00012202,2]
[335988686,1724656241781,-500.0,0.00012202,2]
[335988688,1724656241791,-500.0,0.00012202,2]
[335988690,1724656241801,-811.37,0.00012202,2]
[335988692,1724656241812,-500.0,0.00012202,2]
[335988694,1724656241823,-500.0,0.00012202,2]
[335988696,1724656241833,-1151.22,0.00012202,2]
[335988698,1724656241843,-500.0,0.00012202,2]
[335988700,1724656241853,-742.86,0.00012202,2]
[335988702,1724656241863,-639.2,0.00012202,2]
[335988704,1724656241874,-1148.08,0.00012202,2]
[335988706,1724656241883,-500.0,0.00012202,2]
[335988708,1724656241893,-2680.08,0.00012202,2]
[335988710,1724656241903,-1827.42,0.00012202,2]
[335988713,1724656241914,-500.0,0.00012202,2]
[335988715,1724656241929,-503.33,0.00012202,2]
[335988717,1724656241943,-500.0,0.00012202,2]
[335988719,1724656241953,-500.0,0.00012202,2]
[335988721,1724656241962,-559.91,0.00012202,2]
[335988723,1724656241971,-500.0,0.00012202,2]
[335988725,1724656241981,-500.0,0.00012202,2]
[335988727,1724656241990,-503.54,0.00012202,2]
[335988729,1724656242000,-500.0,0.00012202,2]
[335988731,1724656242010,-500.0,0.00012202,2]
[335988733,1724656242020,-500.0,0.00012202,2]
[335988735,1724656242029,-563.13,0.00012202,2]
[335988737,1724656242039,-500.0,0.00012202,2]
[335988739,1724656242049,-869.19,0.00012202,2]
[335988741,1724656242058,-588.79,0.00012202,2]
[335988743,1724656242068,-500.0,0.00012202,2]
[335988745,1724656242079,-502.91,0.00012202,2]
[335988747,1724656242089,-500.0,0.00012202,2]
[335988749,1724656242099,-228.38501131,0.00012202,2]
[335988751,1724656242108,-574.92,0.00012202,2]
[335988753,1724656242118,-500.0,0.00012202,2]
[335988755,1724656242129,-563.34,0.00012202,2]
[335988757,1724656242139,-549.86,0.00012202,2]
[335988760,1724656242149,-22904.94,0.00012202,2]
[335988761,1724656242159,-866.09,0.00012202,2]
[335988763,1724656242168,-500.0,0.00012202,2]
[335988765,1724656242182,-500.0,0.00012202,2]
[335988767,1724656242191,-500.0,0.00012202,2]
[335988769,1724656242201,-500.0,0.00012202,2]
[335988771,1724656242210,-500.0,0.00012202,2]
[335988773,1724656242219,-500.0,0.00012202,2]
[335988775,1724656242229,-1140.86,0.00012202,2]
[335988777,1724656242238,-500.0,0.00012202,2]
[335988779,1724656242248,-594.35,0.00012202,2]
[335988781,1724656242257,-699.62,0.00012202,2]
[335988783,1724656242267,-500.0,0.00012202,2]
[335988786,1724656242277,-500.0,0.00012202,2]
[335988787,1724656242286,-581.71,0.00012202,2]
[335988790,1724656242296,-500.0,0.00012202,2]
[335988792,1724656242306,-703.02,0.00012202,2]
[335988794,1724656242315,-1299.0,0.00012202,2]
[335988795,1724656242325,-500.0,0.00012202,2]
[335988798,1724656242334,-500.0,0.00012202,2]
[335988800,1724656242343,-679.57,0.00012202,2]
[335988802,1724656242352,-687.34,0.00012202,2]
[335988803,1724656242361,-997.11,0.00012202,2]
[335988805,1724656242371,-500.0,0.00012202,2]
[335988808,1724656242383,-500.0,0.00012202,2]
[335988810,1724656242393,-500.0,0.00012202,2]
[335988812,1724656242402,-1962.67,0.00012202,2]
[335988814,1724656242411,-560.44,0.00012202,2]
[335988816,1724656242424,-500.0,0.00012202,2]
[335988818,1724656242435,-968.55,0.00012202,2]
[335988820,1724656242445,-500.0,0.00012202,2]
[335988822,1724656242455,-570.38,0.00012202,2]
[335988825,1724656242465,-500.0,0.00012202,2]
[335988826,1724656242475,-500.0,0.00012202,2]
[335988829,1724656242484,-3909.45,0.00012202,2]
[335988830,1724656242494,-500.0,0.00012202,2]
[335988833,1724656242503,-1037.69,0.00012202,2]
[335988835,1724656242512,-500.0,0.00012202,2]
[335988837,1724656242522,-660.7,0.00012202,2]
[335988839,1724656242531,-500.0,0.00012202,2]
[335988841,1724656242540,-500.0,0.00012202,2]
[335988843,1724656242549,-500.0,0.00012202,2]
[335988846,1724656242559,-500.0,0.00012202,2]
[335988849,1724656242570,-500.0,0.00012202,2]
[335988852,1724656242580,-541.27,0.00012202,2]
[335988855,1724656242589,-1135.01,0.00012202,2]
[335988858,1724656242599,-741.78,0.00012202,2]
[335988861,1724656242608,-500.0,0.00012202,2]
[335988864,1724656242618,-500.0,0.00012202,2]
[335988867,1724656242627,-500.0,0.00012202,2]
[335988870,1724656242636,-977.44,0.00012202,2]
[335988873,1724656242646,-500.0,0.00012202,2]
[335988876,1724656242655,-410.86411606,0.00012202,2]
[335988879,1724656242665,-45119.4426627,0.00012202,2]
[335988882,1724656242677,-45119.4426627,0.00012203,2]
[335988885,1724656242693,-500.0,0.00012203,2]
[335988888,1724656242702,-683.81,0.00012203,2]
[335988891,1724656242711,-520.64,0.00012203,2]
[335988894,1724656242721,-791.7,0.00012203,2]
[335988897,1724656242731,-573.27,0.00012203,2]
[335988900,1724656242740,-912.09,0.00012203,2]
[335988903,1724656242750,-647.82,0.00012203,2]
[335988906,1724656242759,-500.0,0.00012203,2]
[335988909,1724656242768,-500.0,0.00012203,2]
[335988912,1724656242777,-615.26,0.00012203,2]
[335988916,1724656242787,-500.0,0.00012203,2]
[335988920,1724656242796,-534.75,0.00012203,2]
[335988924,1724656242805,-500.0,0.00012203,2]
[335988928,1724656242815,-658.41,0.00012203,2]
[335988931,1724656242825,-500.0,0.00012203,2]
[335988935,1724656242834,-500.0,0.00012203,2]
[335988937,1724656242844,-500.0,0.00012203,2]
[335988940,1724656242853,-886.72,0.00012203,2]
[335988942,1724656242863,-500.0,0.00012203,2]
[335988943,1724656242872,-839.83,0.00012203,2]
[335988948,1724656243051,-500.0,0.00012203,2]
[335988950,1724656243060,-957.57,0.00012203,2]
[335988952,1724656243070,-860.0,0.00012203,2]
[335988954,1724656243080,-735.83,0.00012203,2]
[335988956,1724656243089,-500.0,0.00012203,2]
[335988958,1724656243099,-770.53,0.00012203,2]
[335988960,1724656243108,-500.0,0.00012203,2]
[335988962,1724656243117,-660.28,0.00012203,2]
[335988963,1724656243127,-500.0,0.00012203,2]
[335988965,1724656243136,-500.0,0.00012203,2]
[335988967,1724656243145,-500.0,0.00012203,2]
[335988969,1724656243154,-623.72,0.00012203,2]
[335988971,1724656243164,-956.69,0.00012203,2]
[335988973,1724656243175,-500.0,0.00012203,2]
[335988976,1724656243185,-875.93,0.00012203,2]
[335988978,1724656243195,-634.92,0.00012203,2]
[335988980,1724656243204,-916.7,0.00012203,2]
[335988982,1724656243213,-500.0,0.00012203,2]
[335988984,1724656243223,-500.0,0.00012203,2]
[335988986,1724656243232,-537.93,0.00012203,2]
[335988988,1724656243241,-500.0,0.00012203,2]
[335988989,1724656243250,-500.0,0.00012203,2]
[335988991,1724656243260,-525.16,0.00012203,2]
[335988993,1724656243269,-620.29,0.00012203,2]
[335988995,1724656243279,-831.15,0.00012203,2]
[335988997,1724656243289,-500.0,0.00012203,2]
[335988999,1724656243299,-500.0,0.00012212,2]
[335989001,1724656243310,-500.0,0.00012212,2]
[335989003,1724656243320,-500.0,0.00012212,2]
[335989005,1724656243330,-500.0,0.00012212,2]
[335989007,1724656243340,-500.0,0.00012212,2]
[335989011,1724656243350,-500.0,0.00012212,2]
[335989015,1724656243360,-864.76,0.00012212,2]
[335989018,1724656243370,-500.0,0.00012212,2]
[335989020,1724656243379,-500.0,0.00012212,2]